{"text_format":"1","workbook":"xlsx","n_sheets":11,"sheets":["CAPA","Beneficiario","Financiamento","CRITERIOS_SELECAO_AUTOVAL","SIT ECO-FIN E FONTES FINANCIAM","Postos Trabalho","Balanço empresa ","D. Resultados empresa","Balanço da empresa pós Proj","D. Result da empresa pós Proj","Folha2"],"not_rendered":{"charts":0,"images":13,"macros":0,"external_links":4,"defined_names":79,"comments":0,"pivot_tables":0},"unopened":[],"bounds":{"document_bytes":16777216,"sheet_cells":100000,"rows_first":2000,"rows_last":500,"rows_between":2000,"halvings":0,"cell_chars":16384,"cell_head_chars":4096},"cells_cut":0,"cells_raw":0,"read":"whole","date_system":"1900"}

{"sheet":"CAPA","index":0,"n_rows":16,"n_cols":16,"rows_kept":16,"cut":false,"hidden":false,"merged":[[8,2,8,17],[11,2,11,5],[0,17,0,19]]}
[null,"V_2_21_09_2017_17_44"]
[]
[]
[]
[]
[]
[null,null,"BENEFICIÁRIO:"]
[]
[]
[]
[null,null,"NIF:"]
[]
[]
[null,null,"SISTEMA DE INCENTIVOS À DIGITALIZAÇÃO DAS PME DA REGIÃO AUTÓNOMA DA MADEIRA NO CONTEXTO DA PANDEMIA COVID-19 "]
[]
[null,null,"DIGITAL Madeira",null,null,null,null,null,null,null,null,null,null,null,null,"Portaria n.º 28/2022, de 27 janeiro"]

{"sheet":"Beneficiario","index":1,"n_rows":65,"n_cols":24,"rows_kept":65,"cut":false,"hidden":false,"merged":[[4,2,4,26],[11,2,11,26],[21,2,21,26],[20,2,20,26],[27,3,27,25],[29,3,30,5],[29,6,30,12],[29,13,30,14],[29,15,30,16],[29,17,30,19],[29,20,30,22],[29,23,30,25],[7,2,7,5],[14,2,14,29],[31,3,31,5],[31,6,31,12],[31,13,31,14],[31,15,31,16],[31,17,31,19],[31,20,31,22],[31,23,31,25],[32,3,32,5],[32,6,32,12],[32,13,32,14],[32,15,32,16],[32,17,32,19],[32,20,32,22],[32,23,32,25],[76,2,76,25],[37,3,37,5],[33,3,33,5],[33,6,33,12],[33,13,33,14],[33,15,33,16],[33,17,33,19],[33,20,33,22],[34,3,34,5],[34,6,34,12],[34,13,34,14],[34,15,34,16],[34,17,34,19],[34,20,34,22],[35,6,35,12],[33,23,33,25],[34,23,34,25],[48,2,48,26],[35,3,35,5],[36,3,36,5],[36,6,36,12],[36,13,36,14],[36,15,36,16],[36,17,36,19],[35,23,35,25],[36,23,36,25],[37,23,37,25],[59,3,59,5],[59,6,59,12],[59,13,59,14],[59,15,59,16],[59,17,59,19],[59,20,59,22],[59,23,59,25],[36,20,36,22],[37,6,37,12],[37,13,37,14],[37,15,37,16],[37,17,37,19],[37,20,37,22],[35,13,35,14],[35,15,35,16],[35,17,35,19],[35,20,35,22],[60,3,60,5],[60,6,60,12],[60,13,60,14],[60,15,60,16],[60,17,60,19],[60,20,60,22],[60,23,60,25],[61,3,61,5],[61,6,61,12],[61,13,61,14],[61,15,61,16],[61,17,61,19],[61,20,61,22],[61,23,61,25],[62,13,62,14],[62,15,62,16],[62,17,62,19],[62,20,62,22],[62,23,62,25],[63,3,63,5],[63,6,63,12],[63,13,63,14],[63,15,63,16],[63,17,63,19],[63,20,63,22],[63,23,63,25],[64,3,64,5],[64,6,64,12],[64,13,64,14],[64,15,64,16],[64,17,64,19],[64,20,64,22],[64,23,64,25],[54,3,54,25],[56,3,57,5],[56,6,57,12],[56,13,57,14],[56,15,57,16],[56,17,57,19],[56,20,57,22],[56,23,57,25],[58,3,58,5],[58,6,58,12],[58,13,58,14],[58,15,58,16],[58,17,58,19],[58,20,58,22],[58,23,58,25],[62,3,62,5],[62,6,62,12]]}
[]
[]
[null,null,"BENEFICIÁRIO:"]
[]
[null,null,{"$f":"+CAPA!C9","v":0}]
[]
[null,null,"NIF:"]
[null,null,{"$f":"+CAPA!C12","v":0}]
[]
[null,null,"SISTEMA DE INCENTIVOS:"]
[]
[null,null,{"$f":"+CAPA!C16","v":"DIGITAL Madeira"}]
[]
[]
[]
[]
[]
[]
[null,null,"Evolução da empresa"]
[]
[null,null," - Breve historial do beneficiário: estrutura societária; principais participações noutras empresas; evolução da atividade; principais clientes; fornecedores e mercados."]
[]
[]
[]
[]
[]
[]
[null,null,null,"Principais Participações:"]
[]
[null,null,null,"NIPC/NIF",null,null,"Participadas",null,null,null,null,null,null,"País",null,"Particip.\n%",null,"Volume \nNegócios",null,null,"Activo",null,null,"N.º P. Trab"]
[]
[null,null,null,null,null,null,null,null,null,null,null,null,null,"Portugal"]
[null,null,null,null,null,null,null,null,null,null,null,null,null,"Portugal"]
[null,null,null,null,null,null,null,null,null,null,null,null,null,"Portugal"]
[null,null,null,null,null,null,null,null,null,null,null,null,null,"Portugal"]
[null,null,null,null,null,null,null,null,null,null,null,null,null,"Portugal"]
[null,null,null,null,null,null,null,null,null,null,null,null,null,"Portugal"]
[null,null,null,null,null,null,null,null,null,null,null,null,null,"Portugal"]
[]
[]
[]
[]
[]
[]
[]
[]
[]
[null,null,"Projeto"]
[null,null," - Descrição do projeto e resultados esperados (análise financeira)"]
[]
[]
[]
[]
[]
[null,null,null,"Principais Participações:"]
[]
[null,null,null,"NIPC/NIF",null,null,"Participadas",null,null,null,null,null,null,"País",null,"Particip.\n%",null,"Volume \nNegócios",null,null,"Activo",null,null,"N.º P. Trab"]
[]
[null,null,null,null,null,null,null,null,null,null,null,null,null,"Portugal"]
[null,null,null,null,null,null,null,null,null,null,null,null,null,"Portugal"]
[null,null,null,null,null,null,null,null,null,null,null,null,null,"Portugal"]
[null,null,null,null,null,null,null,null,null,null,null,null,null,"Portugal"]
[null,null,null,null,null,null,null,null,null,null,null,null,null,"Portugal"]
[null,null,null,null,null,null,null,null,null,null,null,null,null,"Portugal"]
[null,null,null,null,null,null,null,null,null,null,null,null,null,"Portugal"]

{"sheet":"Financiamento","index":2,"n_rows":107,"n_cols":29,"rows_kept":107,"cut":false,"hidden":false,"merged":[[20,3,20,28],[21,3,21,8],[21,9,21,11],[21,12,21,14],[21,15,21,18],[21,19,21,23],[21,24,21,28],[7,2,7,5],[14,2,14,29],[19,3,19,8],[19,9,19,11],[19,12,19,14],[19,15,19,18],[19,19,19,23],[19,24,19,28],[23,3,23,8],[23,9,23,11],[23,12,23,14],[23,15,23,18],[23,19,23,23],[23,24,23,28],[22,3,22,8],[22,9,22,11],[22,12,22,14],[22,15,22,18],[22,19,22,23],[22,24,22,28],[25,3,25,8],[25,9,25,11],[25,12,25,14],[25,15,25,18],[25,19,25,23],[25,24,25,28],[24,3,24,8],[24,9,24,11],[24,12,24,14],[24,15,24,18],[24,19,24,23],[24,24,24,28],[27,3,27,8],[27,9,27,11],[27,12,27,14],[27,15,27,18],[27,19,27,23],[27,24,27,28],[26,3,26,8],[26,9,26,11],[26,12,26,14],[26,15,26,18],[26,19,26,23],[26,24,26,28],[30,3,30,8],[30,9,30,11],[30,12,30,14],[30,15,30,18],[30,19,30,23],[30,24,30,28],[28,3,28,28],[29,3,29,8],[29,9,29,11],[29,12,29,14],[29,15,29,18],[29,19,29,23],[29,24,29,28],[31,9,31,11],[31,12,31,14],[31,15,31,18],[31,19,31,23],[31,24,31,28],[32,3,32,8],[32,9,32,11],[32,12,32,14],[32,15,32,18],[32,19,32,23],[34,3,34,8],[34,9,34,11],[34,12,34,14],[34,15,34,18],[34,19,34,23],[34,24,34,28],[32,24,32,28],[33,3,33,8],[33,9,33,11],[33,12,33,14],[33,15,33,18],[33,19,33,23],[33,24,33,28],[36,3,36,8],[36,9,36,11],[36,12,36,14],[36,15,36,18],[36,19,36,23],[36,24,36,28],[35,3,35,8],[35,9,35,11],[35,12,35,14],[35,15,35,18],[35,19,35,23],[35,24,35,28],[38,3,38,8],[38,9,38,11],[38,12,38,14],[38,15,38,18],[38,19,38,23],[38,24,38,28],[37,3,37,8],[37,9,37,11],[37,12,37,14],[37,15,37,18],[37,19,37,23],[37,24,37,28],[40,3,40,8],[40,9,40,11],[40,12,40,14],[40,15,40,18],[40,19,40,23],[40,24,40,28],[39,3,39,8],[39,9,39,11],[39,12,39,14],[39,15,39,18],[39,19,39,23],[39,24,39,28],[54,3,54,5],[54,7,54,10],[54,13,54,21],[55,3,55,5],[55,7,55,10],[55,14,55,20],[47,3,47,8],[47,13,47,24],[49,21,49,23],[50,21,50,23],[53,3,53,10],[53,13,53,21],[60,23,60,27],[61,14,61,20],[61,23,61,27],[62,23,62,27],[55,23,55,27],[56,23,56,27],[57,13,57,21],[57,23,57,27],[58,14,58,20],[58,23,58,27],[102,4,102,28],[103,4,103,28],[106,3,106,28],[4,2,4,29],[11,2,11,29],[95,3,95,29],[97,3,97,28],[98,4,98,28],[99,4,99,28],[100,4,100,28],[101,4,101,28],[87,3,87,28],[88,3,88,28],[89,4,89,28],[90,4,90,28],[91,4,92,28],[94,3,94,29],[64,23,64,27],[66,11,66,26],[67,25,67,26],[85,3,85,28],[86,3,86,28],[59,23,59,27],[60,13,60,21]]}
[]
[]
[null,null,"BENEFICIÁRIO:"]
[]
[null,null,{"$f":"+CAPA!C9","v":0}]
[]
[null,null,"NIF:"]
[null,null,{"$f":"+CAPA!C12","v":0}]
[]
[null,null,"SISTEMA DE INCENTIVOS:"]
[]
[null,null,{"$f":"+CAPA!C16","v":"DIGITAL Madeira"}]
[]
[]
[null,null,"FINANCIAMENTO DO PROJECTO"]
[]
[]
[null,null,null," Estrutura de Financiamento (Recursos Financeiros)    "]
[]
[null,null,null,"Fontes",null,null,null,null,null,"n",null,null,"n+1",null,null,"n+2",null,null,null,"Total",null,null,null,null,"% Investimento"]
[null,null,null,"1. Capitais Próprios (1)"]
[null,null,null,"Capital",null,null,null,null,null,null,null,null,null,null,null,null,null,null,null,{"$f":"SUM(J22:S22)","v":0},null,null,null,null,{"$f":"IF(ISERROR(T22/$T$41),\"0%\",T22/$T$41)","v":"0%"}]
[null,null,null,"Prestações Suplementares de Capital",null,null,null,null,null,null,null,null,null,null,null,null,null,null,null,0,null,null,null,null,"0%"]
[null,null,null,"Suprimentos Consolidados",null,null,null,null,null,null,null,null,null,null,null,null,null,null,null,0,null,null,null,null,"0%"]
[null,null,null,"Sub-Total 1",null,null,null,null,null,{"$f":"+J24+J23+J22","v":0},null,null,{"$f":"+M24+M23+M22","v":0},null,null,{"$f":"+P24+P23+P22","v":0},null,null,null,0,null,null,null,null,"0%"]
[null,null,null,"2. Autofinanciamento (3)",null,null,null,null,null,null,null,null,null,null,null,null,null,null,null,0,null,null,null,null,"0%"]
[null,null,null,"3. Outros",null,null,null,null,null,null,null,null,null,null,null,null,null,null,null,0,null,null,null,null,"0%"]
[null,null,null,"Sub-Total 2",null,null,null,null,null,{"$f":"+J26+J27","v":0},null,null,{"$f":"+M26+M27","v":0},null,null,{"$f":"+P26+P27","v":0},null,null,null,0,null,null,null,null,"0%"]
[null,null,null,"4. Capitais Alheios"]
[null,null,null,"Dívidas a Instituições de Crédito",null,null,null,null,null,null,null,null,null,null,null,null,null,null,null,{"$f":"SUM(J30:S30)","v":0},null,null,null,null,{"$f":"IF(ISERROR(T30/$T$41),\"0%\",T30/$T$41)","v":"0%"}]
[null,null,null,"Empréstimos Obrigacionistas",null,null,null,null,null,null,null,null,null,null,null,null,null,null,null,0,null,null,null,null,{"$f":"IF(ISERROR(T31/$T$41),\"0%\",T31/$T$41)","v":"0%"}]
[null,null,null,"Outras dívidas a Sócios/ acionistas",null,null,null,null,null,null,null,null,null,null,null,null,null,null,null,0,null,null,null,null,{"$f":"IF(ISERROR(T32/$T$41),\"0%\",T32/$T$41)","v":"0%"}]
[null,null,null,"Fornecedores de Imobilizado",null,null,null,null,null,null,null,null,null,null,null,null,null,null,null,0,null,null,null,null,"0%"]
[null,null,null,"Locação Financeira",null,null,null,null,null,null,null,null,null,null,null,null,null,null,null,0,null,null,null,null,"0%"]
[null,null,null,"Outros",null,null,null,null,null,null,null,null,null,null,null,null,null,null,null,0,null,null,null,null,"0%"]
[null,null,null,"Sub-Total 3",null,null,null,null,null,{"$f":"+J35+J34+J33+J32+J31+J30","v":0},null,null,{"$f":"+M35+M34+M33+M32+M31+M30","v":0},null,null,{"$f":"+P35+P34+P33+P32+P31+P30","v":0},null,null,null,{"$f":"SUM(J36:S36)","v":0},null,null,null,null,"0%"]
[null,null,null,"Incentivo Não Reembolsável (INR)",null,null,null,null,null,null,null,null,null,null,null,null,null,null,null,{"$f":"SUM(J37:S37)","v":0},null,null,null,null,"0%"]
[null,null,null,"Incentivo Reembolsável (IR)",null,null,null,null,null,null,null,null,null,null,null,null,null,null,null,{"$f":"SUM(J38:S38)","v":0},null,null,null,null,"0%"]
[null,null,null,"Sub-Total 4",null,null,null,null,null,{"$f":"+J37+J38","v":0},null,null,{"$f":"+M37+M38","v":0},null,null,{"$f":"+P37+P38","v":0},null,null,null,{"$f":"SUM(J39:S39)","v":0},null,null,null,null,"0%"]
[null,null,null,"FINANCIAMENTO TOTAL",null,null,null,null,null,{"$f":"+J39+J36+J25+J28","v":0},null,null,{"$f":"+M39+M36+M25+M28","v":0},null,null,{"$f":"+P39+P36+P25+P28","v":0},null,null,null,{"$f":"SUM(J40:S40)","v":0},null,null,null,null,"0%"]
[null,null,null,"INVESTIMENTO TOTAL",null,null,null,null,null,null,null,null,null,null,null,null,null,null,null,{"$f":"+J41+M41+P41","v":0}]
[null,null,null,"(1) Novos capitais próprios"]
[null,null,null,"(3) Resultado líquido do exercício + imparidades + provisões + gastos/ reversões de depreciação e amortização, do ano pré-projecto"]
[]
[]
[]
[]
[null,null,null,"Financiamento Bancário Assegurado",null,null,null,null,null,null,null,null,null,"Modalidades de Intervenção da Instituição de Crédito"]
[null,null,null,null,null,null,null,null,null,null,null,null,null,"Pedido de Financiamento à Instituição de Crédito:"]
[null,null,null,null,"Sim",null,null,"Não",null,null,null,null,null,"Crédito Bancário",null,null,null,null,null,"Montante:"]
[null,null,null,null,null,null,null,null,null,null,null,null,null,"Locação Financeira",null,null,null,null,null,"Montante:"]
[null,null,null,null,null,null,null,null,null,null,null,null,null,"Prestação de Garantia Bancária"]
[]
[null,null,null,"Outras Formas Financiamento",null,null,null,null,null,null,null,null,null,"Fontes de financiamento"]
[null,null,null,"Garantia Mútua",null,null,null,"                 Outra",null,null,null,null,null,"(CPp/DEp) ≥ 10% "]
[null,null,null,"Capital Risco",null,null,null,null,null,null,null,null,null,null,{"$f":"IF(ISERROR(+X57/X59),\"\",X57/X59)","v":""},null,null,null,null,null,null,null,null,"Capital Próprio Projeto - CPp"]
[null,null,null,null,null,null,null,null,null,null,null,null,null,null,null,null,null,"ou",null,null,null,null,null,{"$f":"+T25","v":0}]
[null,null,null,null,null,null,null,null,null,null,null,null,null,"(CPe + CPp) /(AT+ DEp ) ≥ 10%",null,null,null,null,null,null,null,null,null,"Despesa elegível projeto - Dep"]
[null,null,null,null,null,null,null,null,null,null,null,null,null,null,{"$f":"IF(ISERROR((+X57+X61)/(X63+X59)),\"\",(+X57+X61)/(X59+X63))","v":""},null,null,null,null,null,null,null,null,null,null,null,null,null,"(inserir)"]
[null,null,null,null,null,null,null,null,null,null,null,null,null,null,null,null,null,null,null,null,null,null,null,"Capital próprio empresa - Cpe"]
[null,null,null,null,null,null,null,null,null,null,null,null,null,null,null,null,null,null,null,null,null,null,null,null,null,null,null,null,"(inserir)"]
[null,null,null,null,null,null,null,null,null,null,null,null,null,null,null,null,null,null,null,null,null,null,null,"Ativo total da empresa - AT"]
[null,null,null,null,null,null,null,null,null,null,null,null,null,null,null,null,null,null,null,null,null,null,null,null,null,null,null,null,"(inserir)"]
[]
[]
[]
[]
[null,null,null,null,null,null,null,null,null,null,null,null,null,null,null,null,null,null,null,null,null,null,null,null,null,{"$f":"+IF(ISERROR(+(X57)/X59),\"\",(X57)/X59)","v":""}]
[null,null,null,"Demonstração das Fontes de Financiamento"]
[]
[]
[]
[]
[]
[]
[]
[]
[]
[]
[]
[]
[]
[null,null,null,"Descrição das Fontes de Financiamento: "]
[null,null,null,"O beneficiário deverá justificar os valores e fontes indicadas na tabela, através de uma breve descrição."]
[]
[null,null,null,"Pretende-se, no quadro de Estrutura de Financiamento (Recursos Financeiros) do projeto, a indicação dos meios de financiamento do investimento nos anos da sua execução. "]
[null,null,null,"O financiamento total e anual deve ser coincidente com o correspondente investimento total e anual, inserido no quadro dos investimentos "]
[null,null,null,"O beneficiário tem de evidenciar que as fontes de financiamento estão asseguradas, devendo os correspondentes documentos comprovativos constar do Dossier de Projeto: "]
[null,null,null,"Capitais Próprios "]
[null,null,null,null,"Capital - indicação de qual o aumento de capital que, eventualmente, irá financiar o investimento. "]
[null,null,null,null,"Prestações Suplementares de Capital - indicação de qual o aumento de prestações suplementares que, eventualmente, irá financiar o investimento. "]
[null,null,null,null,"Suprimentos -  Novos suprimentos a incorporar em capital próprio até ao encerramento do projecto, para efeitos de cumprimento da condição de elegibilidade do projeto e do critério D (FP)."]
[]
[null,null,null,"Autofinanciamento "]
[null,null,null,"Poderá ser utilizado em cada ano de execução do investimento, um valor de autofinanciamento, que tenha como limite os meios libertos líquidos\n (Resultados Líquidos do Período + Gastos/Reversões de Depreciação e de Amortização + Imparidades + Provisões + Aumentos/reduções de justo valor)."]
[null,null,null,"Outros, poderão ser utilizadas outras forma de financiamento."]
[]
[null,null,null,"Capitais Alheios: "]
[null,null,null,null,"Dividas Instituições de Crédito - indicação de qual o valor de empréstimos bancários que, eventualmente, irá financiar o investimento. Na fase de candidatura, deverá entregar o documento comprovativo da aprovação do financiamento bancário ou de intenção de financiamento. "]
[null,null,null,null,"Empréstimos por Obrigações - Indicação de qual o valor de empréstimos obrigacionistas que, eventualmente, irá financiar o investimento. Na fase de candidatura, deverá dispor no Dossier do Projeto, da cópia da ata deliberativa da realização do empréstimo obrigacionista, incluindo as respetivas condições, nomeadamente, o montante, a taxa de juro, o valor nominal, o preço de emissão, o valor de reembolso e o método de amortização das obrigações. "]
[null,null,null,null,"Dívidas a Sócios/Acionistas - Indicação de qual o valor de outras eventuais dívidas a sócios/acionistas, que irão financiar o investimento. "]
[null,null,null,null,"Fornecedores imobilizado - indicação de qual o valor de fornecedores de imobilizado que, eventualmente, irá financiar o investimento. A maturidade do crédito concedido por Fornecedores de Imobilizado terá de ser igual ao prazo de execução do investimento. Na fase de candidatura, o documento comprovativo do acordo com o fornecedor de imobilizado, deverá integrar o Dossier de Projeto. "]
[null,null,null,null,"Locação Financeira – referência ao valor de locação financeira que, eventualmente, irá financiar o investimento. O beneficiário deve comprometer-se a concretizar a opção de compra do bem locado, no final do contrato de locação financeira. Nota as despesas pagas com recurso ao leasing, exceto se cumprido o estabelecido no Decreto-Lei nº 159/2014, de 27 de outubro"]
[null,null,null,null,"Outros - Indicação de qual o valor de outras eventuais outras fontes, que irão financiar o investimento. "]
[]
[null,null,null,"Incentivos: "]
[null,null,null,"O beneficiário deverá indicar o montante de incentivo  que previsivelmente lhe venha a ser atribuído de acordo com as taxas e regras constantes do Regulamento. "]

{"sheet":"CRITERIOS_SELECAO_AUTOVAL","index":3,"n_rows":110,"n_cols":10,"rows_kept":110,"cut":false,"hidden":false,"merged":[[104,3,104,8],[103,3,103,10],[74,3,74,11],[75,3,75,11],[36,3,36,7],[76,3,76,8],[19,3,19,11],[44,3,44,10],[45,3,45,10],[48,5,48,9],[47,3,47,10],[111,3,111,10],[112,3,112,10],[113,3,113,10],[3,2,3,12],[6,2,6,5],[12,2,12,12],[49,3,49,11],[39,3,39,10],[105,3,105,8],[20,3,20,11],[37,3,37,10],[38,3,38,10],[40,3,40,10],[41,3,41,10],[42,3,42,10],[43,3,43,10]]}
[]
[null,null,"BENEFICIÁRIO:"]
[]
[null,null,{"$f":"+CAPA!C9","v":0}]
[]
[null,null,"NIF:"]
[null,null,{"$f":"+CAPA!C12","v":0}]
[]
[null,null,"SISTEMA DE INCENTIVOS:"]
[]
[null,null,{"$f":"+CAPA!C16","v":"DIGITAL Madeira"}]
[]
[null,null,"Critérios de Seleção – Autoavaliação do Beneficiário"]
[]
[null,null,"  "]
[]
[null,null,null,"CRITÉRIO DE SELEÇÃO A - Qualidade do projeto"]
[]
[]
[null,null,null,"Fundamentação: Fundamentar o contributo do projeto na estratégia da empresa, nomeadamente se a coerência e pertinência do plano de investimento contribuem para uma melhoria da eficiência da atividade e organização interna do beneficiário, isto é, se os investimentos a realizar contribuem positivamente para a estratégia da transição digital da empresa e respetiva capacitação da mesma."]
[null,null,null," -"]
[]
[]
[]
[]
[]
[]
[]
[]
[]
[]
[]
[]
[]
[]
[]
[null,null,null,"A pontuação neste critério terá em conta os segunites fatores de valorização:"]
[null,null,null,"a)   Identificação clara da estratégia para uma transição digital;"]
[null,null,null,"b)  Identificação clara dos objetivos estratégicos, nomeadamente quanto à coerência e pertinência do plano de investimentos necessário à transição digital da empresa;"]
[null,null,null,"c)  Efeitos na organização interna do beneficiário, traduzindo-se em melhorias esperadas ao nível de:"]
[null,null,null,"i)        Modelo organizacional; "]
[null,null,null,"ii)       Modelo funcional;"]
[null,null,null,"iii)      Grau de simplificação dos processos;"]
[null,null,null,"iv)      Reengenharia e desmaterialização de processos;"]
[null,null,null,"v)       Intensidade de utilização das tecnologias de informação;"]
[null,null,null,"vi)      Intensidade de utilização das tecnologias de comunicação."]
[]
[null,null,null,"CRITÉRIO DE SELEÇÃO B - Contributo do projeto para a competitividade da empresa e convergência socioeconómica regional"]
[null,null,null,null,null,"B = 0,50 B1 + 0,50 B2"]
[null,null,null,"B1 - Sustentabilidade financeira do projeto: será tida em consideração a credibilidade da proposta face ao plano de negócios da empresa e a forma de financiamento do projeto"]
[]
[null,null,null,"Fundamentação:"]
[]
[]
[]
[]
[]
[]
[]
[]
[]
[]
[]
[]
[]
[]
[]
[]
[]
[null,null,null,"Apresentar os valores apurados para:"]
[]
[null,null,null,"Despesa elegível do projeto",null,"(inserir)",null,null,null,"Pontuação B1"]
[null,null,null,"Capitais próprios do projeto",null,"(inserir)",null,null,null,{"$f":"IF(ISERROR(+(E73/E72)),\"\",+(E73/E72))","v":""}]
[]
[null,null,null,"Capitais próprios do projeto = capitais próprios incluídos no projeto -integrando apenas novas entradas de capital: capital social, prestações suplementares e suprimentos desde que venham a ser incorporados em capital próprio até à data da conclusão do projeto"]
[null,null,null,"Despesa elegível do projeto - investimento toal elegivel"]
[null,null,null,"A pontuação no subcritério B1 será atribuida considerando as seguintes notações:"]
[null,null,null,"FP < 10%",0,"Fraco "]
[null,null,null,"10% ≤ FP < 15%",50,"Médio"]
[null,null,null,"15% ≤ FP < 25%",80,"Forte"]
[null,null,null,"FP ≥ 25%",100,"Muito Forte"]
[]
[]
[null,null,null,"B2 - Contributo do projeto para a criação de um ambiente socioeconómico mais favorável na Região (RAM) "]
[null,null,null,"Fundamentação (avaliar a manutenção e/ou criação líquida de emprego):"]
[]
[]
[]
[]
[]
[]
[]
[]
[]
[]
[]
[]
[]
[]
[]
[]
[]
[]
[]
[]
[null,null,null,"A pontuação no subcritério B2 será atribuida considerando as seguintes notações:"]
[null,null,null,"Redução",0,"Fraco "]
[null,null,null,"Manutenção",50,"Médio"]
[null,null,null,"Criação ≤ 2",80,"Forte"]
[null,null,null,"Criação ≥ 3",100,"Muito Forte"]

{"sheet":"SIT ECO-FIN E FONTES FINANCIAM","index":4,"n_rows":12,"n_cols":1,"rows_kept":12,"cut":false,"hidden":true,"merged":[[2,0,2,9],[5,0,5,3],[11,0,11,9]]}
["BENEFICIÁRIO:"]
[]
[{"$f":"+CAPA!C9","v":0}]
[]
["NIF:"]
[{"$f":"++CAPA!C12","v":0}]
[]
["SISTEMA DE INCENTIVOS:"]
[]
[{"$f":"+CAPA!C16","v":"DIGITAL Madeira"}]
[]
["Situação económico-financeira do beneficiário e fontes de financiamento"]

{"sheet":"Postos Trabalho","index":5,"n_rows":62,"n_cols":15,"rows_kept":62,"cut":false,"hidden":false,"merged":[[33,3,33,4],[55,3,56,25],[11,2,11,29],[4,2,4,29],[30,3,31,4],[30,5,30,6],[30,10,31,11],[30,12,30,13],[32,3,32,4],[32,10,32,11],[7,2,7,3],[20,3,21,3],[20,4,20,5],[20,6,20,7],[20,8,20,9]]}
[]
[]
[null,null,"BENEFICIÁRIO:"]
[]
[null,null,{"$f":"+CAPA!C9","v":0}]
[]
[null,null,"NIF:"]
[null,null,{"$f":"+CAPA!C12","v":0}]
[]
[null,null,"SISTEMA DE INCENTIVOS:"]
[]
[null,null,{"$f":"+CAPA!C16","v":"DIGITAL Madeira"}]
[]
[]
[null,null,"POSTOS DE TRABALHO"]
[]
[null,null,"  "]
[]
[null,null,null,"Postos de trabalho existentes na empresa"]
[null,null,null,"O número de postos de trabalho existentes no mês anterior à data de apresentação do pedido de pagamento final e no mês anterior à data da apresentação da candidatura"]
[null,null,null,"Postos de trabalho","Mês de dezembro do ano pré-projeto",null,"e",null,"Mês anterior à data a apresentação da candidatura"]
[null,null,null,null,"H","M",null,null,"H","M"]
[null,null,null,"Não qualificado",null,null,null,null,null,null,"(inserir)"]
[null,null,null,"Qualificado*",null,null,null,null,null,null,"(inserir)"]
[null,null,null,"* Nivel de qualificação igual ou superior ao Nível VI"]
[]
[]
[]
[null,null,null,"Postos de trabalho a criar com o projeto"]
[]
[null,null,null,"Postos de trabalho",null,"Total",null,null,null,null,"Postos de trabalho",null,"Total"]
[null,null,null,null,null,"H","M",null,null,null,null,null,"H","M"]
[null,null,null,"Não qualificado",null,null,null,"(inserir)",null,null,"Jovem",null,null,null,"(inserir)"]
[null,null,null,"Qualificado*",null,null,null,"(inserir)"]
[null,null,null,"* Nivel de qualificação igual ou superior ao Nível VI"]
[]
[null,null,null,"Fundamentação: "]
[null,null,null," - Se os meios humanos são adequados ao desenvolvimento do projeto."]
[null,null,null," - Qual a formação dos postos de trabalho e se a mesma é adequada ao desenvolvimento do projeto."]
[]
[]
[]
[]
[]
[]
[]
[]
[]
[]
[]
[]
[]
[]
[]
[null,null,null,"Nota:"]
[null,null,null,"«Criação líquida de postos de trabalho», o aumento líquido do número de trabalhadores diretamente empregados na empresa, validado pela diferença entre o número de postos de trabalho existentes no mês anterior à data de apresentação do pedido de pagamento final e no mês anterior à data da apresentação da candidatura. Para efeitos de criação líquida dos postos não são considerados os estagiários com contrato de formação\napresentação da candidatura\n"]
[]
[]
[null,null,null,"Nos termos da Portaria n.º 782/2009 de 23 de julho, os níveis de qualificação de emprego a considerar são:"]
[null,null,null,"• Nível 6 - Licenciatura\n"]
[null,null,null,"• Nível 7 - Mestrado"]
[null,null,null,"• Nível 8 - Doutoramento"]

{"sheet":"Balanço empresa ","index":6,"n_rows":84,"n_cols":18,"rows_kept":84,"cut":false,"hidden":false,"merged":[[83,14,83,15],[72,14,72,15],[73,14,73,15],[74,14,74,15],[75,14,75,15],[76,14,76,15],[77,14,77,15],[78,14,78,15],[79,14,79,15],[80,14,80,15],[81,14,81,15],[82,14,82,15],[71,14,71,15],[59,14,59,15],[60,14,60,15],[62,14,62,15],[63,14,63,15],[64,14,64,15],[65,14,65,15],[66,14,66,15],[67,14,67,15],[68,14,68,15],[69,14,69,15],[70,14,70,15],[58,14,58,15],[47,14,47,15],[48,14,48,15],[49,14,49,15],[50,14,50,15],[51,14,51,15],[52,14,52,15],[53,14,53,15],[54,14,54,15],[55,14,55,15],[56,14,56,15],[57,14,57,15],[41,14,41,15],[42,14,42,15],[43,14,43,15],[44,14,44,15],[46,3,46,13],[46,14,46,15],[28,3,28,13],[28,14,28,15],[40,14,40,15],[30,3,30,13],[30,14,30,15],[31,14,31,15],[32,14,32,15],[33,14,33,15],[34,14,34,15],[35,14,35,15],[36,14,36,15],[37,14,37,15],[38,14,38,15],[39,14,39,15],[25,3,25,13],[25,14,25,15],[26,3,26,13],[26,14,26,15],[27,3,27,13],[27,14,27,15],[22,3,22,13],[22,14,22,15],[23,3,23,13],[23,14,23,15],[24,3,24,13],[24,14,24,15],[19,3,19,13],[19,14,19,15],[20,3,20,13],[20,14,20,15],[21,3,21,13],[21,14,21,15],[3,2,3,18],[17,3,17,13],[17,14,17,15],[18,3,18,13],[18,14,18,15],[6,2,6,5],[16,3,16,4],[16,16,16,17],[12,2,12,18],[14,2,14,7],[14,8,14,10],[10,2,10,18],[13,8,13,10]]}
[]
[null,null,"BENEFICIÁRIO:"]
[]
[null,null,{"$f":"+CAPA!C9","v":0}]
[]
[null,null,"NIF:"]
[null,null,{"$f":"+CAPA!C12","v":0}]
[]
[null,null,"SISTEMA DE INCENTIVOS:"]
[]
[null,null,{"$f":"+CAPA!C16","v":"DIGITAL Madeira"}]
[]
[null,null,"BALANÇO DA EMPRESA Pré candidatura"]
[null,null,null,null,null,null,null,null,"(inserir data)"]
[null,null,"Data da candidatura:"]
[]
[null,null,null,"(euros)"]
[null,null,null,"ATIVO",null,null,null,null,null,null,null,null,null,null,"Notas",null,{"$f":"IF(YEAR($I$15)=\"\",\"\",YEAR($I$15)-2)","v":1898},{"$f":"IF(YEAR($I$15)=\"\",\"\",YEAR($I$15)-1)","v":1899}]
[null,null,null,"Ativo não corrente"]
[null,null,null,"Ativos fixos tangíveis"]
[null,null,null,"Propriedades de investimento"]
[null,null,null,"Goodwill"]
[null,null,null,"Ativos Intangíveis"]
[null,null,null,"Ativos biológicos"]
[null,null,null,"Participações financeiras - método da equivalência patrimonial"]
[null,null,null,"Participações financeiras - outros métodos"]
[null,null,null,"Acionistas/ sócios"]
[null,null,null,"Outros ativos financeiros"]
[null,null,null,"Ativos por impostos diferidos"]
[null,null,null,null,null,null,null,null,null,null,null,null,null,null,null,null,{"$f":"+Q19+Q20+Q21+Q22+Q23+Q24+Q25+Q26+Q27+Q28+Q29","v":0},0]
[null,null,null,"Ativo corrente"]
[null,null,null,"Inventários "]
[null,null,null,"Ativos biológicos"]
[null,null,null,"Clientes"]
[null,null,null,"Adiantamentos a fornecedores"]
[null,null,null,"Estado e outros entes públicos"]
[null,null,null,"Acionistas/ sócios"]
[null,null,null,"Outras contas a receber"]
[null,null,null,"Diferimentos"]
[null,null,null,"Ativos financeiros detidos para negociação"]
[null,null,null,"Outros ativos financeiros"]
[null,null,null,"Ativos não correntes detidos para venda"]
[null,null,null,"Caixa e depósitos bancários"]
[null,null,null,null,null,null,null,null,null,null,null,null,null,null,null,null,{"$f":"+Q31+Q32+Q33+Q34+Q35+Q36+Q37+Q38+Q39+Q40+Q41+Q42+Q43","v":0},0]
[null,null,null,"TOTAL DO ATIVO",null,null,null,null,null,null,null,null,null,null,null,null,{"$f":"+Q30+Q44","v":0},0]
[]
[null,null,null,"CAPITAL PRÓPRIO E PASSIVO"]
[null,null,null,"CAPITAL PRÓPRIO  "]
[null,null,null,"Capital realizado"]
[null,null,null,"Acções (quotas) próprias "]
[null,null,null,"Outros instrumentos de capital próprio"]
[null,null,null,"Prémios de emissão"]
[null,null,null,"Reservas legais"]
[null,null,null,"Outras reservas"]
[null,null,null,"Resultados transitados"]
[null,null,null,"Ajustamentos em activos financeiros"]
[null,null,null,"Excedentes de revalorização"]
[null,null,null,"Outras variações no capital próprio"]
[null,null,null,"Resultado líquido do período "]
[null,null,null,"Interesses minoritários"]
[null,null,null,"Total do capital próprio",null,null,null,null,null,null,null,null,null,null,null,null,{"$f":"+Q48+Q49+Q50+Q51+Q52+Q53+Q54+Q55+Q56+Q57+Q58+Q59+Q60","v":0},0]
[]
[null,null,null,"Passivo"]
[null,null,null,"Passivo não corrente"]
[null,null,null,"Provisões"]
[null,null,null,"Financiamentos obtidos"]
[null,null,null,"Responsabilidades por belefícios pós-emprego"]
[null,null,null,"Passivos por impostos diferidos"]
[null,null,null,"Outras contas a pagar"]
[null,null,null,null,null,null,null,null,null,null,null,null,null,null,null,null,{"$f":"+Q63+Q64+Q65+Q66+Q67+Q68+Q69","v":0},0]
[null,null,null,"Passivo corrente"]
[null,null,null,"Fornecedores"]
[null,null,null,"Adiantamento de clientes"]
[null,null,null,"Estado e outros entes públicos"]
[null,null,null,"Accionistas/sócios"]
[null,null,null,"Financiamentos obtidos"]
[null,null,null,"Outras contas a pagar"]
[null,null,null,"Diferimentos"]
[null,null,null,"Passivos financeiros detidos para negociação"]
[null,null,null,"Outros passivos financeiros"]
[null,null,null,"Passivos não correntes detidos para venda"]
[null,null,null,null,null,null,null,null,null,null,null,null,null,null,null,null,{"$f":"+Q71+Q72+Q73+Q74+Q75+Q76+Q77+Q78+Q79+Q80+Q81","v":0},0]
[null,null,null,"Total do passivo",null,null,null,null,null,null,null,null,null,null,null,null,{"$f":"+Q70+Q82","v":0},0]
[null,null,null,"Total do capital próprio e do passivo",null,null,null,null,null,null,null,null,null,null,null,null,{"$f":"+Q61+Q83","v":0},0]

{"sheet":"D. Resultados empresa","index":7,"n_rows":54,"n_cols":18,"rows_kept":54,"cut":false,"hidden":false,"merged":[[51,3,51,13],[51,14,51,15],[52,3,52,13],[52,14,52,15],[53,3,53,13],[53,14,53,15],[49,3,49,13],[49,14,49,15],[46,3,46,13],[46,14,46,15],[47,3,47,13],[47,14,47,15],[41,3,41,13],[43,3,43,13],[43,14,43,15],[45,3,45,13],[45,14,45,15],[38,3,38,13],[39,3,39,13],[40,3,40,13],[35,3,35,13],[36,3,36,13],[37,3,37,13],[32,3,32,13],[33,3,33,13],[34,3,34,13],[29,3,29,13],[30,3,30,13],[31,3,31,13],[26,3,26,13],[27,3,27,13],[28,3,28,13],[23,3,23,13],[24,3,24,13],[25,3,25,13],[19,3,19,13],[22,3,22,13],[16,3,16,13],[17,3,17,13],[17,14,17,15],[18,3,18,13],[16,14,16,15],[6,2,6,5],[12,2,12,18],[15,16,15,17],[10,2,10,18],[3,2,3,18]]}
[]
[null,null,"BENEFICIÁRIO:"]
[]
[null,null,{"$f":"+CAPA!C9","v":0}]
[]
[null,null,"NIF:"]
[null,null,{"$f":"+CAPA!C12","v":0}]
[]
[null,null,"SISTEMA DE INCENTIVOS:"]
[]
[null,null,{"$f":"+CAPA!C16","v":"DIGITAL Madeira"}]
[]
[null,null,"DEMONSTRAÇÃO DE RESULTADOS pré candidatura"]
[null,null,"  "]
[]
[]
[null,null,null,null,null,null,null,null,null,null,null,null,null,null,"Notas",null,{"$f":"+'Balanço empresa '!Q18","v":1898},{"$f":"+'Balanço empresa '!R18","v":1899}]
[null,null,null,"RENDIMENTOS E GASTOS"]
[null,null,null,"Vendas e serviços prestados",null,null,null,null,null,null,null,null,null,null,null,"+"]
[null,null,null,"Subsídios à exploração",null,null,null,null,null,null,null,null,null,null,null,"+"]
[null,null,null,"Ganhos/perdas imputados de subsidiárias, associadas e empreendimentos conjuntos",null,null,null,null,null,null,null,null,null,null,null,"+/-"]
[null,null,null,"Variação nos inventários da produção",null,null,null,null,null,null,null,null,null,null,null,"+/-"]
[null,null,null,"Trabalhos para a própria entidade",null,null,null,null,null,null,null,null,null,null,null,"+"]
[null,null,null,"Custo das mercadorias vendidas e das matérias consumidas",null,null,null,null,null,null,null,null,null,null,null,"-"]
[null,null,null,"Fornecimentos e serviços externos",null,null,null,null,null,null,null,null,null,null,null,"-"]
[null,null,null,"Gastos com o pessoal",null,null,null,null,null,null,null,null,null,null,null,"-"]
[null,null,null,"Imparidade de inventários (perdas/ reversões)",null,null,null,null,null,null,null,null,null,null,null,"-/+"]
[null,null,null,"Imparidade de dívidas a receber (perdas/ reversões)",null,null,null,null,null,null,null,null,null,null,null,"-/+"]
[null,null,null,"Provisões (perdas/ reduções)",null,null,null,null,null,null,null,null,null,null,null,"-/+"]
[null,null,null,"Imparidade de investimentos não depreciáveis/ amortizações (perdas/ reversões)",null,null,null,null,null,null,null,null,null,null,null,"-/+"]
[null,null,null,"Aumentos/ reduções de justo valor",null,null,null,null,null,null,null,null,null,null,null,"+/-"]
[null,null,null,"Outros rendimentos e ganhos",null,null,null,null,null,null,null,null,null,null,null,"+"]
[null,null,null,"Outros gastos e perdas",null,null,null,null,null,null,null,null,null,null,null,"-"]
[null,null,null,"Resultados antes de depreciações, gastos de financiamento e impostos",null,null,null,null,null,null,null,null,null,null,null,"=",{"$f":"SUM(Q19:Q33)","v":0},{"$f":"SUM(R19:R33)","v":0}]
[null,null,null,"Gastos/ reversões de depreciação e de amortização",null,null,null,null,null,null,null,null,null,null,null,"-/+"]
[null,null,null,"Imparidade de investimentos depreciáveis/ amorizáveis (perdas/ reversões)",null,null,null,null,null,null,null,null,null,null,null,"-/+"]
[null,null,null,"Resultado operacional (antes de gastos de financiamento e impostos)",null,null,null,null,null,null,null,null,null,null,null,"=",{"$f":"+Q34+Q35+Q36","v":0},0]
[null,null,null,"Juros e rendimentos similares obtidos",null,null,null,null,null,null,null,null,null,null,null,"+"]
[null,null,null,"Juros e gastos similares suportados",null,null,null,null,null,null,null,null,null,null,null,"-"]
[null,null,null,"Resultado antes de impostos",null,null,null,null,null,null,null,null,null,null,null,"=",{"$f":"+Q37+Q38+Q39","v":0},0]
[null,null,null,"Imposto sobre o rendimento do período",null,null,null,null,null,null,null,null,null,null,null,"-/+"]
[null,null,null,"Resultado líquido do período",null,null,null,null,null,null,null,null,null,null,null,"=",{"$f":"+Q40+Q41","v":0},0]
[]
[null,null,null,"Resultado das atividades descontinuadas (líquido de impostos) incluido no resultado líquido do período"]
[]
[null,null,null,"Resultado líquido do período atribuível a: (2)"]
[null,null,null,"Detentores do capital da empresa-mãe"]
[null,null,null,"Interesses minoritários"]
[null,null,null,null,null,null,null,null,null,null,null,null,null,null,null,"=",{"$f":"+Q47+Q48","v":0},0]
[null,null,null,"Resultado por ação básico"]
[]
[null,null,null,"Outros Dados"]
[null,null,null,"Gastos de Amortização"]
[null,null,null,"Volume de Negócios Internacional "]

{"sheet":"Balanço da empresa pós Proj","index":8,"n_rows":84,"n_cols":27,"rows_kept":84,"cut":false,"hidden":false,"merged":[[71,14,71,15],[83,14,83,15],[72,14,72,15],[73,14,73,15],[74,14,74,15],[75,14,75,15],[76,14,76,15],[77,14,77,15],[78,14,78,15],[79,14,79,15],[80,14,80,15],[81,14,81,15],[82,14,82,15],[68,14,68,15],[69,14,69,15],[59,14,59,15],[60,14,60,15],[62,14,62,15],[63,14,63,15],[64,14,64,15],[70,14,70,15],[58,14,58,15],[47,14,47,15],[48,14,48,15],[49,14,49,15],[50,14,50,15],[51,14,51,15],[52,14,52,15],[53,14,53,15],[54,14,54,15],[55,14,55,15],[56,14,56,15],[57,14,57,15],[65,14,65,15],[66,14,66,15],[67,14,67,15],[41,14,41,15],[42,14,42,15],[43,14,43,15],[44,14,44,15],[46,3,46,13],[46,14,46,15],[40,14,40,15],[30,3,30,13],[30,14,30,15],[31,14,31,15],[32,14,32,15],[33,14,33,15],[34,14,34,15],[35,14,35,15],[36,14,36,15],[37,14,37,15],[38,14,38,15],[39,14,39,15],[26,3,26,13],[26,14,26,15],[27,3,27,13],[27,14,27,15],[28,3,28,13],[28,14,28,15],[23,3,23,13],[23,14,23,15],[24,3,24,13],[24,14,24,15],[25,3,25,13],[25,14,25,15],[20,3,20,13],[20,14,20,15],[21,3,21,13],[21,14,21,15],[22,3,22,13],[22,14,22,15],[17,3,17,13],[17,14,17,15],[18,3,18,13],[18,14,18,15],[19,3,19,13],[19,14,19,15],[3,2,3,27],[16,3,16,4],[16,16,16,26],[12,2,12,27],[14,2,14,7],[14,8,14,10],[10,2,10,27],[6,2,6,5]]}
[]
[null,null,"BENEFICIÁRIO:"]
[]
[null,null,{"$f":"+CAPA!C9","v":0}]
[]
[null,null,"NIF:"]
[null,null,{"$f":"+CAPA!C12","v":0}]
[]
[null,null,"SISTEMA DE INCENTIVOS:"]
[]
[null,null,{"$f":"+CAPA!C16","v":"DIGITAL Madeira"}]
[]
[null,null,"BALANÇO DA EMPRESA PÓS PROJECTO"]
[]
[null,null,{"$f":"+'Balanço empresa '!C15","v":"Data da candidatura:"},null,null,null,null,null,{"$f":"+'Balanço empresa '!I15:K15","v":"00:00:00"}]
[]
[null,null,null,"(euros)",null,null,null,null,null,null,null,null,null,null,null,null,"EMPRESA PÓS PROJETO"]
[null,null,null,"ACTIVO",null,null,null,null,null,null,null,null,null,null,"Notas",null,{"$f":"IF(YEAR($I$15)=\"\",\"\",YEAR($I$15))","v":1900},{"$f":"IF(YEAR($I$15)=\"\",\"\",YEAR($I$15)+1)","v":1901},{"$f":"IF(YEAR($I$15)=\"\",\"\",YEAR($I$15)+2)","v":1902},{"$f":"IF(YEAR($I$15)=\"\",\"\",YEAR($I$15)+3)","v":1903},{"$f":"IF(YEAR($I$15)=\"\",\"\",YEAR($I$15)+4)","v":1904},{"$f":"IF(YEAR($I$15)=\"\",\"\",YEAR($I$15)+4)","v":1904},{"$f":"IF(YEAR($I$15)=\"\",\"\",YEAR($I$15)+5)","v":1905},{"$f":"IF(YEAR($I$15)=\"\",\"\",YEAR($I$15)+6)","v":1906},{"$f":"IF(YEAR($I$15)=\"\",\"\",YEAR($I$15)+7)","v":1907},{"$f":"IF(YEAR($I$15)=\"\",\"\",YEAR($I$15)+8)","v":1908},{"$f":"IF(YEAR($I$15)=\"\",\"\",YEAR($I$15)+9)","v":1909}]
[null,null,null,"Ativo não corrente"]
[null,null,null,"Ativos fixos tangíveis"]
[null,null,null,"Propriedades de investimento"]
[null,null,null,"Goodwill"]
[null,null,null,"Ativos Intangíveis"]
[null,null,null,"Ativos biológicos"]
[null,null,null,"Participações financeiras - método da equivalência patrimonial"]
[null,null,null,"Participações financeiras - outros métodos"]
[null,null,null,"Acionistas/ sócios"]
[null,null,null,"Outros ativos financeiros"]
[null,null,null,"Ativos por impostos diferidos"]
[null,null,null,null,null,null,null,null,null,null,null,null,null,null,null,null,{"$f":"+Q20+Q21+Q22+Q23+Q24+Q25+Q26+Q27+Q28+Q29","v":0},{"$f":"+R20+R21+R22+R23+R24+R25+R26+R27+R28+R29","v":0},0,0,0,0,0,0,0,0,0]
[null,null,null,"Ativo corrente"]
[null,null,null,"Inventários "]
[null,null,null,"Ativos biológicos"]
[null,null,null,"Clientes"]
[null,null,null,"Adiantamentos a fornecedores"]
[null,null,null,"Estado e outros entes públicos"]
[null,null,null,"Acionistas/ sócios"]
[null,null,null,"Outras contas a receber"]
[null,null,null,"Diferimentos"]
[null,null,null,"Ativos financeiros detidos para negociação"]
[null,null,null,"Outros ativos financeiros"]
[null,null,null,"Ativos não correntes detidos para venda"]
[null,null,null,"Caixa e depósitos bancários"]
[null,null,null,null,null,null,null,null,null,null,null,null,null,null,null,null,{"$f":"+Q32+Q33+Q34+Q35+Q36+Q37+Q38+Q39+Q40+Q41+Q42+Q43","v":0},{"$f":"+R32+R33+R34+R35+R36+R37+R38+R39+R40+R41+R42+R43","v":0},0,0,0,0,0,0,0,0,0]
[null,null,null,"TOTAL DO ATIVO",null,null,null,null,null,null,null,null,null,null,null,null,{"$f":"+Q30+Q44","v":0},0,0,0,0,0,0,0,0,0,0]
[]
[null,null,null,"CAPITAL PRÓPRIO E PASSIVO"]
[null,null,null,"CAPITAL PRÓPRIO  "]
[null,null,null,"Capital realizado"]
[null,null,null,"Acções (quotas) próprias "]
[null,null,null,"Outros instrumentos de capital próprio"]
[null,null,null,"Prémios de emissão"]
[null,null,null,"Reservas legais"]
[null,null,null,"Outras reservas"]
[null,null,null,"Resultados transitados"]
[null,null,null,"Ajustamentos em activos financeiros"]
[null,null,null,"Excedentes de revalorização"]
[null,null,null,"Outras variações no capital próprio"]
[null,null,null,"Resultado líquido do período "]
[null,null,null,"Interesses minoritários"]
[null,null,null,"Total do capital próprio",null,null,null,null,null,null,null,null,null,null,null,null,{"$f":"+Q48+Q49+Q50+Q51+Q52+Q53+Q54+Q55+Q56+Q57+Q58+Q59+Q60","v":0},0,0,0,0,0,0,0,0,0,0]
[]
[null,null,null,"Passivo"]
[null,null,null,"Passivo não corrente"]
[null,null,null,"Provisões"]
[null,null,null,"Financiamentos obtidos"]
[null,null,null,"Responsabilidades por belefícios pós-emprego"]
[null,null,null,"Passivos por impostos diferidos"]
[null,null,null,"Outras contas a pagar"]
[null,null,null,null,null,null,null,null,null,null,null,null,null,null,null,null,{"$f":"++Q65+Q66+Q67+Q68+Q69","v":0},{"$f":"+R63+R64+R65+R66+R67+R68+R69","v":0},0,0,0,0,0,0,0,0,0]
[null,null,null,"Passivo corrente"]
[null,null,null,"Fornecedores"]
[null,null,null,"Adiantamento de clientes"]
[null,null,null,"Estado e outros entes públicos"]
[null,null,null,"Accionistas/ sócios"]
[null,null,null,"Financiamentos obtidos"]
[null,null,null,"Outras contas a pagar"]
[null,null,null,"Diferimentos"]
[null,null,null,"Passivos financeiros detidos para negociação"]
[null,null,null,"Outros passivos financeiros"]
[null,null,null,"Passivos não correntes detidos para venda"]
[null,null,null,null,null,null,null,null,null,null,null,null,null,null,null,null,{"$f":"+Q72+Q73+Q74+Q75+Q76+Q77+Q78+Q79+Q80+Q81","v":0},{"$f":"+R72+R73+R74+R75+R76+R77+R78+R79+R80+R81","v":0},0,{"$f":"+T72+T73+T74+T75+T76+T77+T78+T79+T80+T81","v":0},0,0,0,0,0,0,0]
[null,null,null,"Total do passivo",null,null,null,null,null,null,null,null,null,null,null,null,{"$f":"+Q70+Q82","v":0},0,0,{"$f":"+T70+T82","v":0},0,0,0,0,0,0,0]
[null,null,null,"Total do capital próprio e do passivo",null,null,null,null,null,null,null,null,null,null,null,null,{"$f":"+Q61+Q83","v":0},0,0,{"$f":"+T61+T83","v":0},0,0,0,0,0,0,0]

{"sheet":"D. Result da empresa pós Proj","index":9,"n_rows":54,"n_cols":27,"rows_kept":54,"cut":false,"hidden":false,"merged":[[51,3,51,13],[51,14,51,15],[52,3,52,13],[52,14,52,15],[53,3,53,13],[53,14,53,15],[49,3,49,13],[49,14,49,15],[46,3,46,13],[46,14,46,15],[47,3,47,13],[47,14,47,15],[41,3,41,13],[43,3,43,13],[43,14,43,15],[45,3,45,13],[45,14,45,15],[38,3,38,13],[39,3,39,13],[40,3,40,13],[35,3,35,13],[36,3,36,13],[37,3,37,13],[32,3,32,13],[33,3,33,13],[34,3,34,13],[29,3,29,13],[30,3,30,13],[31,3,31,13],[26,3,26,13],[27,3,27,13],[28,3,28,13],[23,3,23,13],[24,3,24,13],[25,3,25,13],[3,2,3,27],[19,3,19,13],[22,3,22,13],[16,3,16,13],[17,3,17,13],[17,14,17,15],[18,3,18,13],[6,2,6,5],[12,2,12,27],[15,16,15,26],[13,16,13,27],[10,2,10,27]]}
[]
[null,null,"BENEFICIÁRIO:"]
[]
[null,null,{"$f":"+CAPA!C9","v":0}]
[]
[null,null,"NIF:"]
[null,null,{"$f":"+CAPA!C12","v":0}]
[]
[null,null,"SISTEMA DE INCENTIVOS:"]
[]
[null,null,{"$f":"+CAPA!C16","v":"DIGITAL Madeira"}]
[]
[null,null,"DEMONSTRAÇÃO DE RESULTADOS DA EMPRESA PÓS PROJECTO"]
[null,null,"  "]
[null,null,null,null,null,null,null,null,{"$f":"+'Balanço da empresa pós Proj'!I15:K15","v":"00:00:00"}]
[null,null,null,null,null,null,null,null,null,null,null,null,null,null,null,null,"EMPRESA PÓS PROJETO"]
[null,null,null,null,null,null,null,null,null,null,null,null,null,null,"Notas",null,{"$f":"+'Balanço da empresa pós Proj'!Q18","v":1900},{"$f":"+'Balanço da empresa pós Proj'!R18","v":1901},{"$f":"+'Balanço da empresa pós Proj'!S18","v":1902},{"$f":"+'Balanço da empresa pós Proj'!T18","v":1903},{"$f":"+'Balanço da empresa pós Proj'!U18","v":1904},{"$f":"IF(YEAR($I$15)=\"\",\"\",YEAR($I$15)+4)","v":1904},{"$f":"IF(YEAR($I$15)=\"\",\"\",YEAR($I$15)+5)","v":1905},{"$f":"IF(YEAR($I$15)=\"\",\"\",YEAR($I$15)+6)","v":1906},{"$f":"IF(YEAR($I$15)=\"\",\"\",YEAR($I$15)+7)","v":1907},{"$f":"IF(YEAR($I$15)=\"\",\"\",YEAR($I$15)+8)","v":1908},{"$f":"IF(YEAR($I$15)=\"\",\"\",YEAR($I$15)+9)","v":1909}]
[null,null,null,"RENDIMENTOS E GASTOS"]
[null,null,null,"Vendas e serviços prestados",null,null,null,null,null,null,null,null,null,null,null,"+"]
[null,null,null,"Subsídios à exploração",null,null,null,null,null,null,null,null,null,null,null,"+"]
[null,null,null,"Ganhos/perdas imputados de subsidiárias, associadas e empreendimentos conjuntos",null,null,null,null,null,null,null,null,null,null,null,"+/-"]
[null,null,null,"Variação nos inventários da produção",null,null,null,null,null,null,null,null,null,null,null,"+/-"]
[null,null,null,"Trabalhos para a própria entidade",null,null,null,null,null,null,null,null,null,null,null,"+"]
[null,null,null,"Custo das mercadorias vendidas e das matérias consumidas",null,null,null,null,null,null,null,null,null,null,null,"-"]
[null,null,null,"Fornecimentos e serviços externos",null,null,null,null,null,null,null,null,null,null,null,"-"]
[null,null,null,"Gastos com o pessoal",null,null,null,null,null,null,null,null,null,null,null,"-"]
[null,null,null,"Imparidade de inventários (perdas/ reversões)",null,null,null,null,null,null,null,null,null,null,null,"-/+"]
[null,null,null,"Imparidade de dívidas a receber (perdas/ reversões)",null,null,null,null,null,null,null,null,null,null,null,"-/+"]
[null,null,null,"Provisões (perdas/ reduções)",null,null,null,null,null,null,null,null,null,null,null,"-/+"]
[null,null,null,"Imparidade de investimentos não depreciáveis/ amortizações (perdas/ reversões)",null,null,null,null,null,null,null,null,null,null,null,"-/+"]
[null,null,null,"Aumentos/reduções de justo valor",null,null,null,null,null,null,null,null,null,null,null,"+/-"]
[null,null,null,"Outros rendimentos e ganhos",null,null,null,null,null,null,null,null,null,null,null,"+"]
[null,null,null,"Outros gastos e perdas",null,null,null,null,null,null,null,null,null,null,null,"-"]
[null,null,null,"Resultados antes de depreciações, gastos de financiamento e impostos",null,null,null,null,null,null,null,null,null,null,null,"=",{"$f":"SUM(Q19:Q33)","v":0},{"$f":"SUM(R19:R33)","v":0},0,0,0,{"$f":"SUM(V18:V33)","v":0},0,0,0,0,0]
[null,null,null,"Gastos/ reversões de depreciação e de amortização",null,null,null,null,null,null,null,null,null,null,null,"-/+"]
[null,null,null,"Imparidade de investimentos depreciáveis/ amorizáveis (perdas/ reversões)",null,null,null,null,null,null,null,null,null,null,null,"-/+"]
[null,null,null,"Resultado operacional (antes de gastos de financiamento e impostos)",null,null,null,null,null,null,null,null,null,null,null,"=",{"$f":"+Q34+Q35+Q36","v":0},0,0,0,0,0,0,0,0,0,0]
[null,null,null,"Juros e rendimentos similares obtidos",null,null,null,null,null,null,null,null,null,null,null,"+"]
[null,null,null,"Juros e gastos similares suportados",null,null,null,null,null,null,null,null,null,null,null,"-"]
[null,null,null,"Resultado antes de impostos",null,null,null,null,null,null,null,null,null,null,null,"=",{"$f":"+Q37+Q38+Q39","v":0},0,0,0,0,0,0,0,0,0,0]
[null,null,null,"Imposto sobre o rendimento do período",null,null,null,null,null,null,null,null,null,null,null,"-/+"]
[null,null,null,"Resultado líquido do período",null,null,null,null,null,null,null,null,null,null,null,"=",{"$f":"+Q40+Q41","v":0},0,0,0,0,0,0,0,0,0,0]
[]
[null,null,null,"Resultado das atividades descontinuadas (líquido de impostos) incluido no resultado líquido do período"]
[]
[null,null,null,"Resultado líquido do período atribuível a: (2)"]
[null,null,null,"Detentores do capital da empresa-mãe"]
[null,null,null,"Interesses minoritários"]
[null,null,null,null,null,null,null,null,null,null,null,null,null,null,null,"=",{"$f":"+Q47+Q48","v":0},0,0,0,0,0,0,0,0,0,0]
[null,null,null,"Resultado por ação básico"]
[]
[null,null,null,"Outros Dados"]
[null,null,null,"Gastos de Amortização"]
[null,null,null,"Volume de Negócios Internacional "]

{"sheet":"Folha2","index":10,"n_rows":8,"n_cols":3,"rows_kept":8,"cut":false,"hidden":true,"merged":[]}
[]
[]
[null,null,"Sistemas de Incentivos"]
[null,null,"----- Escolha -----"]
[null,null,"INOVAR 2020"]
[null,null,"EMPREENDER 2020"]
[null,null,"INTERNACIONALIZAR 2020"]
[null,null,"PROCiência 2020"]